[Event "Titled Tuesday Blitz April 25 Late 2023"]
[White "Terry, Renato"]
[Black "Kollars, Dmitrij"]
[WhiteFideId "3803457"]
[BlackFideId "12909572"]
[WhiteElo "2575"]
[BlackElo "2584"]
[Result "1-0"]
[Round "11"]
[TimeControl "180+2"]
[Date "2023.04.25"]
[WhiteClock "0:01:38"]
[BlackClock "0:00:11"]

1. d4 {[%clk 0:02:57]}  Nf6 {[%clk 0:02:59]} 2. Nf3 {[%clk 0:02:58]}  d5 {[%clk 0:02:58]} 3. c4 {[%clk 0:02:55]}  e6 {[%clk 0:02:58]} 4. e3 {[%clk 0:02:53]}  b6 {[%clk 0:02:56]} 5. b3 {[%clk 0:02:53]}  Bb7 {[%clk 0:02:56]} 6. Bd3 {[%clk 0:02:53]}  Bd6 {[%clk 0:02:56]} 7. Bb2 {[%clk 0:02:53]}  O-O {[%clk 0:02:57]} 8. Nbd2 {[%clk 0:02:54]}  Nbd7 {[%clk 0:02:57]} 9. O-O {[%clk 0:02:54]}  Ne4 {[%clk 0:02:54]} 10. a3 {[%clk 0:02:53]}  c5 {[%clk 0:02:53]} 11. Qe2 {[%clk 0:02:48]}  Qe7 {[%clk 0:02:49]} 12. Rfd1 {[%clk 0:02:48]}  Rfd8 {[%clk 0:02:37]} 13. Ne5 {[%clk 0:02:49]}  cxd4 {[%clk 0:02:29]} 14. exd4 {[%clk 0:02:48]}  Nxd2 {[%clk 0:02:26]} 15. Rxd2 {[%clk 0:02:46]}  dxc4 {[%clk 0:02:25]} 16. bxc4 {[%clk 0:02:34]}  Bxe5 {[%clk 0:02:19]} 17. dxe5 {[%clk 0:02:35]}  Nc5 {[%clk 0:02:19]} 18. Rad1 {[%clk 0:02:27]}  Qg5 {[%clk 0:02:05]} 19. f3 {[%clk 0:02:26]}  g6 {[%clk 0:01:46]} 20. Bc2 {[%clk 0:02:23]}  Rxd2 {[%clk 0:01:40]} 21. Qxd2 {[%clk 0:02:24]}  Qxd2 {[%clk 0:01:34]} 22. Rxd2 {[%clk 0:02:25]}  Ba6 {[%clk 0:01:35]} 23. Rd4 {[%clk 0:02:23]}  Rc8 {[%clk 0:01:34]} 24. Bc3 {[%clk 0:02:22]}  Kf8 {[%clk 0:01:25]} 25. Bd2 {[%clk 0:02:21]}  Ke8 {[%clk 0:01:14]} 26. Bg5 {[%clk 0:02:20]}  h5 {[%clk 0:01:14]} 27. g4 {[%clk 0:02:19]}  Bb7 {[%clk 0:01:07]} 28. Kf2 {[%clk 0:02:14]}  Nd7 {[%clk 0:00:55]} 29. gxh5 {[%clk 0:01:57]}  gxh5 {[%clk 0:00:56]} 30. f4 {[%clk 0:01:56]}  Rc5 {[%clk 0:00:44]} 31. Ba4 {[%clk 0:01:47]}  Bc6 {[%clk 0:00:42]} 32. Bd1 {[%clk 0:01:47]}  Ra5 {[%clk 0:00:40]} 33. Rd6 {[%clk 0:01:47]}  Be4 {[%clk 0:00:29]} 34. Bxh5 {[%clk 0:01:45]}  Rxa3 {[%clk 0:00:15]} 35. Rxe6+ {[%clk 0:01:45]}  Kf8 {[%clk 0:00:15]} 36. Re7 {[%clk 0:01:46]}  Nc5 {[%clk 0:00:11]} 37. Rxf7+ {[%clk 0:01:46]}  Kg8 {[%clk 0:00:12]} 38. Rc7 {[%clk 0:01:43]}  Rh3 {[%clk 0:00:11]} 39. Bf7+ {[%clk 0:01:40]}  Kf8 {[%clk 0:00:12]} 40. e6 {[%clk 0:01:37]}  Rxh2+ {[%clk 0:00:11]} 41. Kg3 {[%clk 0:01:37]}  Rg2+ {[%clk 0:00:11]} 42. Kh3 {[%clk 0:01:37]}  Rxg5 {[%clk 0:00:10]} 43. fxg5 {[%clk 0:01:37]}  Bf5+ {[%clk 0:00:10]} 44. Kh4 {[%clk 0:01:37]}  Nxe6 {[%clk 0:00:10]} 45. Bxe6 {[%clk 0:01:36]}  Bxe6 {[%clk 0:00:11]} 46. g6 {[%clk 0:01:37]}  a5 {[%clk 0:00:11]} 47. Kg5 {[%clk 0:01:37]}  a4 {[%clk 0:00:11]} 48. Kf6 {[%clk 0:01:38]} 1-0


[Site "https://www.chess.com"]

[Event "Titled Tuesday Blitz April 25 Late 2023"]
[White "Nasuta, Grzegorz"]
[Black "Zhigalko, Sergei"]
[WhiteFideId "1141686"]
[BlackFideId "13502956"]
[WhiteElo "2449"]
[BlackElo "2626"]
[Result "0-1"]
[Round "11"]
[TimeControl "180+2"]
[Date "2023.04.25"]
[WhiteClock "0:00:01"]
[BlackClock "0:00:10"]

1. e4 {[%clk 0:03:00]}  c5 {[%clk 0:03:00]} 2. Nf3 {[%clk 0:03:01]}  Nc6 {[%clk 0:03:00]} 3. d4 {[%clk 0:03:00]}  cxd4 {[%clk 0:03:01]} 4. Nxd4 {[%clk 0:03:00]}  Nf6 {[%clk 0:03:02]} 5. Nc3 {[%clk 0:03:01]}  e5 {[%clk 0:03:02]} 6. Ndb5 {[%clk 0:03:01]}  d6 {[%clk 0:03:03]} 7. Nd5 {[%clk 0:03:02]}  Nxd5 {[%clk 0:03:02]} 8. exd5 {[%clk 0:03:03]}  Nb8 {[%clk 0:03:03]} 9. a4 {[%clk 0:03:02]}  Be7 {[%clk 0:03:03]} 10. Bd2 {[%clk 0:03:02]}  O-O {[%clk 0:03:03]} 11. a5 {[%clk 0:03:03]}  Nd7 {[%clk 0:03:01]} 12. Be2 {[%clk 0:03:02]}  f5 {[%clk 0:03:00]} 13. O-O {[%clk 0:03:02]}  a6 {[%clk 0:02:59]} 14. Na3 {[%clk 0:03:02]}  f4 {[%clk 0:02:59]} 15. Nc4 {[%clk 0:02:58]}  Nf6 {[%clk 0:02:57]} 16. Nb6 {[%clk 0:02:56]}  Rb8 {[%clk 0:02:58]} 17. c4 {[%clk 0:02:44]}  Bf5 {[%clk 0:02:56]} 18. b4 {[%clk 0:02:44]}  Qe8 {[%clk 0:02:45]} 19. Ra3 {[%clk 0:02:44]}  Kh8 {[%clk 0:02:37]} 20. Bc1 {[%clk 0:02:35]}  Rd8 {[%clk 0:02:29]} 21. Kh1 {[%clk 0:02:27]}  Qg6 {[%clk 0:02:20]} 22. Re1 {[%clk 0:02:08]}  Ne4 {[%clk 0:02:14]} 23. Rf1 {[%clk 0:01:53]}  Bh4 {[%clk 0:02:12]} 24. g3 {[%clk 0:01:36]}  Bh3 {[%clk 0:01:04]} 25. Kg1 {[%clk 0:00:29]}  fxg3 {[%clk 0:00:53]} 26. hxg3 {[%clk 0:00:27]}  Bxf1 {[%clk 0:00:46]} 27. Bxf1 {[%clk 0:00:27]}  Nxf2 {[%clk 0:00:20]} 28. Qd2 {[%clk 0:00:16]}  Ne4 {[%clk 0:00:13]} 29. Qg2 {[%clk 0:00:07]}  Bxg3 {[%clk 0:00:12]} 30. Be2 {[%clk 0:00:02]}  Bf2+ {[%clk 0:00:13]} 31. Kh2 {[%clk 0:00:02]}  Bg3+ {[%clk 0:00:10]} 32. Kg1 {[%clk 0:00:02]}  Bf2+ {[%clk 0:00:11]} 33. Kh2 {[%clk 0:00:02]}  Bxb6 {[%clk 0:00:10]} 34. Qxg6 {[%clk 0:00:01]}  hxg6 {[%clk 0:00:10]} 0-1


[Site "https://www.chess.com"]

[Event "Titled Tuesday Blitz April 25 Late 2023"]
[White "Quesada Perez, Yasser"]
[Black "Schnaider, Ilan"]
[WhiteFideId "3509362"]
[BlackFideId "169013"]
[WhiteElo "2496"]
[BlackElo "2224"]
[Result "1-0"]
[Round "11"]
[TimeControl "180+2"]
[Date "2023.04.25"]
[WhiteClock "0:00:52"]
[BlackClock "0:00:03"]

1. e4 {[%clk 0:03:00]}  c5 {[%clk 0:02:59]} 2. Nf3 {[%clk 0:03:00]}  d6 {[%clk 0:03:00]} 3. c3 {[%clk 0:03:01]}  Nf6 {[%clk 0:02:59]} 4. h3 {[%clk 0:03:01]}  g6 {[%clk 0:02:58]} 5. Bd3 {[%clk 0:03:01]}  Bg7 {[%clk 0:02:58]} 6. Bc2 {[%clk 0:03:02]}  O-O {[%clk 0:02:58]} 7. d4 {[%clk 0:03:03]}  cxd4 {[%clk 0:02:58]} 8. cxd4 {[%clk 0:03:03]}  Nc6 {[%clk 0:02:56]} 9. Nc3 {[%clk 0:03:04]}  e5 {[%clk 0:02:54]} 10. d5 {[%clk 0:03:04]}  Ne7 {[%clk 0:02:54]} 11. O-O {[%clk 0:03:03]}  a6 {[%clk 0:02:53]} 12. a4 {[%clk 0:03:03]}  Nd7 {[%clk 0:02:50]} 13. a5 {[%clk 0:03:00]}  h6 {[%clk 0:02:47]} 14. Nd2 {[%clk 0:03:00]}  f5 {[%clk 0:02:44]} 15. Nc4 {[%clk 0:03:00]}  Nf6 {[%clk 0:02:42]} 16. b3 {[%clk 0:02:52]}  fxe4 {[%clk 0:02:36]} 17. Ba3 {[%clk 0:02:48]}  Nf5 {[%clk 0:02:01]} 18. Bxe4 {[%clk 0:02:43]}  Ne8 {[%clk 0:01:54]} 19. Na4 {[%clk 0:02:29]}  Ne7 {[%clk 0:01:30]} 20. Nab6 {[%clk 0:02:27]}  Rb8 {[%clk 0:01:30]} 21. Nxc8 {[%clk 0:02:26]}  Rxc8 {[%clk 0:01:29]} 22. Qd3 {[%clk 0:02:25]}  Nf5 {[%clk 0:01:24]} 23. Rac1 {[%clk 0:02:22]}  Qg5 {[%clk 0:01:16]} 24. Nb6 {[%clk 0:02:15]}  Rd8 {[%clk 0:01:09]} 25. Rc4 {[%clk 0:02:04]}  Nf6 {[%clk 0:01:01]} 26. Bc1 {[%clk 0:02:01]}  Qh5 {[%clk 0:00:38]} 27. Bf3 {[%clk 0:01:53]}  e4 {[%clk 0:00:33]} 28. Rxe4 {[%clk 0:01:53]}  Nxe4 {[%clk 0:00:31]} 29. Bxh5 {[%clk 0:01:53]}  Nc5 {[%clk 0:00:31]} 30. Qc4 {[%clk 0:01:45]}  gxh5 {[%clk 0:00:30]} 31. b4 {[%clk 0:01:45]}  Nd7 {[%clk 0:00:27]} 32. Qc7 {[%clk 0:01:39]}  Nxb6 {[%clk 0:00:18]} 33. axb6 {[%clk 0:01:40]}  Rb8 {[%clk 0:00:07]} 34. Be3 {[%clk 0:01:34]}  Be5 {[%clk 0:00:02]} 35. Rc1 {[%clk 0:01:29]}  Rbe8 {[%clk 0:00:01]} 36. Qxb7 {[%clk 0:01:28]}  Nxe3 {[%clk 0:00:02]} 37. fxe3 {[%clk 0:01:28]}  Bg3 {[%clk 0:00:03]} 38. Qc7 {[%clk 0:01:17]}  Rxe3 {[%clk 0:00:03]} 39. b7 {[%clk 0:01:14]}  Ree8 {[%clk 0:00:03]} 40. Qc3 {[%clk 0:01:05]}  Bf2+ {[%clk 0:00:02]} 41. Kh1 {[%clk 0:01:05]}  h4 {[%clk 0:00:02]} 42. Qc8 {[%clk 0:00:58]}  Ba7 {[%clk 0:00:01]} 43. Qg4+ {[%clk 0:00:58]}  Kh8 {[%clk 0:00:01]} 44. Qxh4 {[%clk 0:00:58]}  Bf2 {[%clk 0:00:01]} 45. Qxh6+ {[%clk 0:00:57]}  Kg8 {[%clk 0:00:02]} 46. Qxd6 {[%clk 0:00:56]}  Re3 {[%clk 0:00:01]} 47. Qg6+ {[%clk 0:00:55]}  Kh8 {[%clk 0:00:01]} 48. Qh6+ {[%clk 0:00:52]}  Kg8 {[%clk 0:00:01]} 49. Qxf8+ {[%clk 0:00:52]}  Kxf8 {[%clk 0:00:01]} 50. b8=Q+ {[%clk 0:00:53]}  Re8 {[%clk 0:00:02]} 51. Qf4+ {[%clk 0:00:53]}  Kg8 {[%clk 0:00:02]} 52. Qxf2 {[%clk 0:00:53]}  Rc8 {[%clk 0:00:03]} 53. Rxc8+ {[%clk 0:00:52]} 1-0


[Site "https://www.chess.com"]

[Event "Titled Tuesday Blitz April 25 Late 2023"]
[White "Rustemov, Alexander"]
[Black "Gonzalez, Francisco Silva"]
[WhiteFideId "4119002"]
[BlackFideId "1512285"]
[WhiteElo "2525"]
[BlackElo "2074"]
[Result "1-0"]
[Round "11"]
[TimeControl "180+2"]
[Date "2023.04.25"]
[WhiteClock "0:01:15"]
[BlackClock "0:00:55"]

1. d4 {[%clk 0:03:00]}  Nf6 {[%clk 0:02:58]} 2. c4 {[%clk 0:03:01]}  e6 {[%clk 0:02:58]} 3. Nf3 {[%clk 0:03:01]}  d5 {[%clk 0:02:56]} 4. Nc3 {[%clk 0:03:01]}  a6 {[%clk 0:02:56]} 5. cxd5 {[%clk 0:03:00]}  exd5 {[%clk 0:02:56]} 6. Bg5 {[%clk 0:03:00]}  Be6 {[%clk 0:02:56]} 7. e3 {[%clk 0:02:59]}  Bd6 {[%clk 0:02:56]} 8. Bd3 {[%clk 0:03:00]}  Nbd7 {[%clk 0:02:57]} 9. Qc2 {[%clk 0:03:00]}  c6 {[%clk 0:02:57]} 10. Bf4 {[%clk 0:03:00]}  Qb8 {[%clk 0:02:56]} 11. Bxd6 {[%clk 0:03:00]}  Qxd6 {[%clk 0:02:55]} 12. h3 {[%clk 0:03:00]}  Rc8 {[%clk 0:02:53]} 13. O-O {[%clk 0:02:58]}  O-O {[%clk 0:02:52]} 14. Rfc1 {[%clk 0:02:57]}  h6 {[%clk 0:02:51]} 15. Na4 {[%clk 0:02:55]}  Rfe8 {[%clk 0:02:33]} 16. b4 {[%clk 0:02:54]}  Ne4 {[%clk 0:02:21]} 17. Nc5 {[%clk 0:02:52]}  Ndxc5 {[%clk 0:02:11]} 18. bxc5 {[%clk 0:02:51]}  Qc7 {[%clk 0:02:11]} 19. Rab1 {[%clk 0:02:36]}  Rcd8 {[%clk 0:02:11]} 20. Rb3 {[%clk 0:02:35]}  Bc8 {[%clk 0:02:10]} 21. Rcb1 {[%clk 0:02:26]}  g5 {[%clk 0:02:08]} 22. Ne5 {[%clk 0:02:22]}  f6 {[%clk 0:02:06]} 23. Bxe4 {[%clk 0:02:21]}  fxe5 {[%clk 0:02:03]} 24. Bf5 {[%clk 0:02:18]}  exd4 {[%clk 0:01:39]} 25. Bxc8 {[%clk 0:02:17]}  dxe3 {[%clk 0:01:32]} 26. Qg6+ {[%clk 0:02:06]}  Qg7 {[%clk 0:01:31]} 27. Qxg7+ {[%clk 0:02:02]}  Kxg7 {[%clk 0:01:32]} 28. Rxb7+ {[%clk 0:01:59]}  Kf6 {[%clk 0:01:32]} 29. Bg4 {[%clk 0:01:57]}  exf2+ {[%clk 0:01:31]} 30. Kxf2 {[%clk 0:01:57]}  Re4 {[%clk 0:01:30]} 31. R7b6 {[%clk 0:01:50]}  Ke5 {[%clk 0:01:30]} 32. Rxc6 {[%clk 0:01:48]}  Ra4 {[%clk 0:01:29]} 33. Rb2 {[%clk 0:01:45]}  d4 {[%clk 0:01:26]} 34. Rxh6 {[%clk 0:01:30]}  d3 {[%clk 0:01:26]} 35. Rd2 {[%clk 0:01:19]}  Kd4 {[%clk 0:01:17]} 36. Rd6+ {[%clk 0:01:18]}  Rxd6 {[%clk 0:01:16]} 37. cxd6 {[%clk 0:01:19]}  Kc3 {[%clk 0:01:16]} 38. Ke3 {[%clk 0:01:19]}  Rd4 {[%clk 0:01:14]} 39. Bf5 {[%clk 0:01:17]}  g4 {[%clk 0:00:59]} 40. Rxd3+ {[%clk 0:01:15]}  Kb2 {[%clk 0:00:57]} 41. Rxd4 {[%clk 0:01:15]}  gxh3 {[%clk 0:00:55]} 42. gxh3 {[%clk 0:01:15]} 1-0


[Site "https://www.chess.com"]

[Event "Titled Tuesday Blitz April 25 Late 2023"]
[White "Oro, Faustino"]
[Black "Demchenko, Anton"]
[WhiteFideId "20000197"]
[BlackFideId "4160258"]
[WhiteElo "1984"]
[BlackElo "2545"]
[Result "1-0"]
[Round "11"]
[TimeControl "180+2"]
[Date "2023.04.25"]
[WhiteClock "0:01:06"]
[BlackClock "0:00:45"]

1. d4 {[%clk 0:02:58]}  Nf6 {[%clk 0:02:59]} 2. Nf3 {[%clk 0:02:56]}  d6 {[%clk 0:02:59]} 3. g3 {[%clk 0:02:53]}  g6 {[%clk 0:02:58]} 4. Bg2 {[%clk 0:02:54]}  Bg7 {[%clk 0:02:59]} 5. O-O {[%clk 0:02:54]}  O-O {[%clk 0:03:00]} 6. b3 {[%clk 0:02:53]}  Nbd7 {[%clk 0:02:57]} 7. Bb2 {[%clk 0:02:53]}  Re8 {[%clk 0:02:57]} 8. c4 {[%clk 0:02:51]}  e5 {[%clk 0:02:57]} 9. dxe5 {[%clk 0:02:50]}  Ng4 {[%clk 0:02:58]} 10. h3 {[%clk 0:02:45]}  Nh6 {[%clk 0:02:57]} 11. Qc2 {[%clk 0:02:37]}  dxe5 {[%clk 0:02:58]} 12. Rd1 {[%clk 0:02:37]}  f6 {[%clk 0:02:52]} 13. Nc3 {[%clk 0:02:37]}  c6 {[%clk 0:02:46]} 14. Ne4 {[%clk 0:02:33]}  Nf7 {[%clk 0:02:47]} 15. Nd6 {[%clk 0:02:11]}  Nxd6 {[%clk 0:02:41]} 16. Rxd6 {[%clk 0:02:12]}  Qe7 {[%clk 0:02:41]} 17. Rad1 {[%clk 0:02:09]}  Nf8 {[%clk 0:02:41]} 18. c5 {[%clk 0:02:02]}  Qe6 {[%clk 0:02:29]} 19. Rxe6 {[%clk 0:02:02]}  Bxe6 {[%clk 0:02:26]} 20. Nd2 {[%clk 0:01:58]}  Rad8 {[%clk 0:02:19]} 21. Ne4 {[%clk 0:01:57]}  Bf5 {[%clk 0:02:15]} 22. Rxd8 {[%clk 0:01:53]}  Rxd8 {[%clk 0:02:15]} 23. Qc4+ {[%clk 0:01:47]}  Be6 {[%clk 0:02:16]} 24. Qc1 {[%clk 0:01:47]}  Rd7 {[%clk 0:02:01]} 25. Nd6 {[%clk 0:01:42]}  Bf7 {[%clk 0:01:53]} 26. Nxf7 {[%clk 0:01:40]}  Kxf7 {[%clk 0:01:50]} 27. b4 {[%clk 0:01:40]}  a6 {[%clk 0:01:50]} 28. a4 {[%clk 0:01:40]}  f5 {[%clk 0:01:45]} 29. Qc4+ {[%clk 0:01:40]}  Ne6 {[%clk 0:01:35]} 30. b5 {[%clk 0:01:40]}  axb5 {[%clk 0:01:35]} 31. axb5 {[%clk 0:01:41]}  Rc7 {[%clk 0:01:27]} 32. bxc6 {[%clk 0:01:36]}  bxc6 {[%clk 0:01:28]} 33. e4 {[%clk 0:01:32]}  Rb7 {[%clk 0:01:10]} 34. Bc3 {[%clk 0:01:29]}  Rb1+ {[%clk 0:00:58]} 35. Kh2 {[%clk 0:01:29]}  Rc1 {[%clk 0:00:59]} 36. exf5 {[%clk 0:01:13]}  gxf5 {[%clk 0:01:00]} 37. Bxc6 {[%clk 0:01:10]}  e4 {[%clk 0:01:00]} 38. Bd7 {[%clk 0:01:10]}  Bxc3 {[%clk 0:00:53]} 39. Qxe6+ {[%clk 0:01:10]}  Kg7 {[%clk 0:00:53]} 40. Qxf5 {[%clk 0:01:08]}  Bd2 {[%clk 0:00:47]} 41. Qe5+ {[%clk 0:01:06]}  Kf8 {[%clk 0:00:46]} 42. Qd6+ {[%clk 0:01:06]}  Kg7 {[%clk 0:00:45]} 43. Qxd2 {[%clk 0:01:06]} 1-0


[Site "https://www.chess.com"]

[Event "Titled Tuesday Blitz April 25 Late 2023"]
[White "Hambleton, Aman"]
[Black "Gritsenko, Nikolai"]
[WhiteFideId "2606577"]
[BlackFideId "14112493"]
[WhiteElo "2511"]
[BlackElo "2389"]
[Result "1-0"]
[Round "11"]
[TimeControl "180+2"]
[Date "2023.04.25"]
[WhiteClock "0:00:43"]
[BlackClock "0:00:03"]

1. d4 {[%clk 0:03:00]}  g6 {[%clk 0:02:58]} 2. c4 {[%clk 0:02:59]}  Bg7 {[%clk 0:02:59]} 3. e4 {[%clk 0:03:00]}  c5 {[%clk 0:02:57]} 4. d5 {[%clk 0:03:00]}  d6 {[%clk 0:02:56]} 5. Bd3 {[%clk 0:03:00]}  Nf6 {[%clk 0:02:51]} 6. h3 {[%clk 0:03:00]}  O-O {[%clk 0:02:51]} 7. Nc3 {[%clk 0:02:59]}  e6 {[%clk 0:02:51]} 8. Nf3 {[%clk 0:02:59]}  exd5 {[%clk 0:02:51]} 9. cxd5 {[%clk 0:03:00]}  Re8 {[%clk 0:02:49]} 10. O-O {[%clk 0:03:00]}  a6 {[%clk 0:02:47]} 11. a4 {[%clk 0:03:00]}  Nbd7 {[%clk 0:02:46]} 12. Bf4 {[%clk 0:02:58]}  Qc7 {[%clk 0:02:45]} 13. Re1 {[%clk 0:02:58]}  Nh5 {[%clk 0:02:45]} 14. Bh2 {[%clk 0:02:58]}  Ne5 {[%clk 0:02:45]} 15. Be2 {[%clk 0:02:59]}  Nf6 {[%clk 0:02:03]} 16. Nxe5 {[%clk 0:02:45]}  dxe5 {[%clk 0:02:02]} 17. a5 {[%clk 0:02:45]}  Bd7 {[%clk 0:01:57]} 18. Bc4 {[%clk 0:02:37]}  Bh6 {[%clk 0:01:41]} 19. g4 {[%clk 0:02:18]}  Qd6 {[%clk 0:01:32]} 20. Qe2 {[%clk 0:01:56]}  Re7 {[%clk 0:01:25]} 21. Kg2 {[%clk 0:01:56]}  Rae8 {[%clk 0:01:24]} 22. f3 {[%clk 0:01:56]}  Bf4 {[%clk 0:01:24]} 23. Bg1 {[%clk 0:01:57]}  h5 {[%clk 0:01:09]} 24. Bf2 {[%clk 0:01:56]}  Kg7 {[%clk 0:00:59]} 25. Rh1 {[%clk 0:01:55]}  Rh8 {[%clk 0:00:58]} 26. b3 {[%clk 0:01:52]}  Ree8 {[%clk 0:00:52]} 27. Qd3 {[%clk 0:01:43]}  Rh7 {[%clk 0:00:49]} 28. Ne2 {[%clk 0:01:42]}  Bh6 {[%clk 0:00:32]} 29. Bh4 {[%clk 0:01:35]}  Reh8 {[%clk 0:00:30]} 30. g5 {[%clk 0:01:35]}  Bxg5 {[%clk 0:00:26]} 31. Bxg5 {[%clk 0:01:35]}  Ng8 {[%clk 0:00:25]} 32. h4 {[%clk 0:01:30]}  f6 {[%clk 0:00:25]} 33. Be3 {[%clk 0:01:31]}  Ne7 {[%clk 0:00:25]} 34. f4 {[%clk 0:01:19]}  Bg4 {[%clk 0:00:21]} 35. fxe5 {[%clk 0:01:12]}  Qxe5 {[%clk 0:00:21]} 36. Ng3 {[%clk 0:01:13]}  f5 {[%clk 0:00:17]} 37. Rhf1 {[%clk 0:00:59]}  Rc8 {[%clk 0:00:14]} 38. Bf4 {[%clk 0:00:57]}  Qf6 {[%clk 0:00:11]} 39. e5 {[%clk 0:00:54]}  Qf8 {[%clk 0:00:11]} 40. Rae1 {[%clk 0:00:49]}  Qd8 {[%clk 0:00:10]} 41. e6 {[%clk 0:00:47]}  Qxa5 {[%clk 0:00:09]} 42. Be5+ {[%clk 0:00:47]}  Kg8 {[%clk 0:00:09]} 43. d6 {[%clk 0:00:47]}  Rd8 {[%clk 0:00:05]} 44. dxe7 {[%clk 0:00:42]}  Rxe7 {[%clk 0:00:05]} 45. Qe3 {[%clk 0:00:43]}  Rd2+ {[%clk 0:00:04]} 46. Rf2 {[%clk 0:00:42]}  Rxf2+ {[%clk 0:00:03]} 47. Kxf2 {[%clk 0:00:43]}  b5 {[%clk 0:00:03]} 48. Qh6 {[%clk 0:00:43]} 1-0


[Site "https://www.chess.com"]

[Event "Titled Tuesday Blitz April 25 Late 2023"]
[White "Aldokhin, Ivan"]
[Black "Leitao, Rafael"]
[WhiteFideId "24115720"]
[BlackFideId "2101246"]
[WhiteElo "2322"]
[BlackElo "2609"]
[Result "0-1"]
[Round "11"]
[TimeControl "180+2"]
[Date "2023.04.25"]
[WhiteClock "0:00:01"]
[BlackClock "0:00:02"]

1. e4 {[%clk 0:03:00]}  e5 {[%clk 0:02:55]} 2. Nf3 {[%clk 0:03:00]}  Nc6 {[%clk 0:02:50]} 3. Bb5 {[%clk 0:03:00]}  a6 {[%clk 0:02:50]} 4. Ba4 {[%clk 0:03:00]}  d6 {[%clk 0:02:50]} 5. O-O {[%clk 0:02:55]}  Bd7 {[%clk 0:02:51]} 6. Bxc6 {[%clk 0:02:49]}  bxc6 {[%clk 0:02:50]} 7. d4 {[%clk 0:02:46]}  f6 {[%clk 0:02:45]} 8. Nh4 {[%clk 0:02:45]}  g6 {[%clk 0:02:21]} 9. f4 {[%clk 0:02:44]}  exf4 {[%clk 0:02:06]} 10. Bxf4 {[%clk 0:02:43]}  Bg7 {[%clk 0:02:05]} 11. Nc3 {[%clk 0:02:28]}  Ne7 {[%clk 0:02:04]} 12. Qd2 {[%clk 0:02:12]}  g5 {[%clk 0:01:52]} 13. Bxg5 {[%clk 0:02:12]}  fxg5 {[%clk 0:01:52]} 14. Qxg5 {[%clk 0:02:13]}  Bxd4+ {[%clk 0:01:52]} 15. Kh1 {[%clk 0:02:12]}  Be6 {[%clk 0:01:47]} 16. Ne2 {[%clk 0:01:32]}  Be5 {[%clk 0:01:40]} 17. Nf4 {[%clk 0:01:11]}  Bxf4 {[%clk 0:01:36]} 18. Rxf4 {[%clk 0:01:08]}  Kd7 {[%clk 0:01:36]} 19. Rd1 {[%clk 0:01:02]}  Qg8 {[%clk 0:01:30]} 20. Qa5 {[%clk 0:00:36]}  Ng6 {[%clk 0:01:16]} 21. Nxg6 {[%clk 0:00:24]}  hxg6 {[%clk 0:01:13]} 22. e5 {[%clk 0:00:22]}  Qh7 {[%clk 0:01:10]} 23. h4 {[%clk 0:00:11]}  Qe7 {[%clk 0:00:55]} 24. exd6 {[%clk 0:00:09]}  Rxh4+ {[%clk 0:00:46]} 25. Kg1 {[%clk 0:00:08]}  cxd6 {[%clk 0:00:46]} 26. Rxd6+ {[%clk 0:00:07]}  Qxd6 {[%clk 0:00:36]} 27. Rxh4 {[%clk 0:00:07]}  Qd1+ {[%clk 0:00:35]} 28. Kh2 {[%clk 0:00:06]}  Qd6+ {[%clk 0:00:35]} 29. Kg1 {[%clk 0:00:06]}  Rf8 {[%clk 0:00:34]} 30. Qe1 {[%clk 0:00:04]}  g5 {[%clk 0:00:16]} 31. Re4 {[%clk 0:00:03]}  Qc5+ {[%clk 0:00:15]} 32. Kh2 {[%clk 0:00:02]}  Rh8+ {[%clk 0:00:15]} 33. Kg3 {[%clk 0:00:02]}  Qd6+ {[%clk 0:00:15]} 34. Kf2 {[%clk 0:00:02]}  Bd5 {[%clk 0:00:14]} 35. Re3 {[%clk 0:00:02]}  Rf8+ {[%clk 0:00:11]} 36. Kg1 {[%clk 0:00:02]}  Qc5 {[%clk 0:00:11]} 37. b4 {[%clk 0:00:02]}  Qb6 {[%clk 0:00:09]} 38. c4 {[%clk 0:00:02]}  Bxc4 {[%clk 0:00:07]} 39. Kh2 {[%clk 0:00:02]}  Qd4 {[%clk 0:00:06]} 40. Re7+ {[%clk 0:00:02]}  Kd6 {[%clk 0:00:04]} 41. Re8 {[%clk 0:00:01]}  Rh8+ {[%clk 0:00:02]} 0-1


[Site "https://www.chess.com"]

[Event "Titled Tuesday Blitz April 25 Late 2023"]
[White "Bilych, Olexiy"]
[Black "Pesotskiy, Mikhail"]
[WhiteFideId "14156504"]
[BlackFideId "34164453"]
[WhiteElo "2320"]
[BlackElo "2131"]
[Result "1-0"]
[Round "11"]
[TimeControl "180+2"]
[Date "2023.04.25"]
[WhiteClock "0:00:22"]
[BlackClock "0:00:01"]

1. d4 {[%clk 0:03:00]}  Nf6 {[%clk 0:02:59]} 2. c4 {[%clk 0:03:01]}  e6 {[%clk 0:02:59]} 3. Nf3 {[%clk 0:03:01]}  Bb4+ {[%clk 0:02:59]} 4. Nbd2 {[%clk 0:03:01]}  b6 {[%clk 0:02:59]} 5. a3 {[%clk 0:03:00]}  Bxd2+ {[%clk 0:02:59]} 6. Qxd2 {[%clk 0:03:00]}  a5 {[%clk 0:02:58]} 7. b3 {[%clk 0:02:58]}  Bb7 {[%clk 0:02:59]} 8. Bb2 {[%clk 0:02:56]}  O-O {[%clk 0:03:00]} 9. e3 {[%clk 0:02:56]}  d6 {[%clk 0:03:00]} 10. Be2 {[%clk 0:02:56]}  Nbd7 {[%clk 0:03:00]} 11. O-O {[%clk 0:02:56]}  Qe7 {[%clk 0:03:01]} 12. b4 {[%clk 0:02:52]}  Ne4 {[%clk 0:03:01]} 13. Qc2 {[%clk 0:02:51]}  f5 {[%clk 0:03:01]} 14. d5 {[%clk 0:02:45]}  e5 {[%clk 0:02:58]} 15. Bd3 {[%clk 0:02:34]}  Ndf6 {[%clk 0:02:38]} 16. Nd2 {[%clk 0:01:38]}  Nxd2 {[%clk 0:02:31]} 17. Qxd2 {[%clk 0:01:39]}  Bc8 {[%clk 0:02:11]} 18. f4 {[%clk 0:01:34]}  exf4 {[%clk 0:02:07]} 19. exf4 {[%clk 0:01:33]}  Ne4 {[%clk 0:02:00]} 20. Rae1 {[%clk 0:01:16]}  axb4 {[%clk 0:01:18]} 21. axb4 {[%clk 0:01:15]}  Bd7 {[%clk 0:01:18]} 22. Qc3 {[%clk 0:01:08]}  Rf7 {[%clk 0:00:58]} 23. Qd4 {[%clk 0:01:03]}  Re8 {[%clk 0:00:59]} 24. Re3 {[%clk 0:00:57]}  Qf6 {[%clk 0:00:50]} 25. Ra1 {[%clk 0:00:50]}  Qxd4 {[%clk 0:00:12]} 26. Bxd4 {[%clk 0:00:50]}  Ree7 {[%clk 0:00:13]} 27. Ra8+ {[%clk 0:00:42]}  Be8 {[%clk 0:00:12]} 28. g4 {[%clk 0:00:40]}  g6 {[%clk 0:00:10]} 29. g5 {[%clk 0:00:35]}  Kf8 {[%clk 0:00:09]} 30. h4 {[%clk 0:00:34]}  Nd2 {[%clk 0:00:05]} 31. Kf2 {[%clk 0:00:25]}  Rxe3 {[%clk 0:00:02]} 32. Kxe3 {[%clk 0:00:24]}  Ne4 {[%clk 0:00:02]} 33. Bxe4 {[%clk 0:00:21]}  fxe4 {[%clk 0:00:03]} 34. Bf6 {[%clk 0:00:22]}  Rxf6 {[%clk 0:00:01]} 35. gxf6 {[%clk 0:00:22]}  Kf7 {[%clk 0:00:02]} 36. Kxe4 {[%clk 0:00:21]}  Bd7 {[%clk 0:00:02]} 37. Ra7 {[%clk 0:00:21]}  Bf5+ {[%clk 0:00:02]} 38. Kd4 {[%clk 0:00:21]}  Kxf6 {[%clk 0:00:02]} 39. Rxc7 {[%clk 0:00:22]}  Bg4 {[%clk 0:00:01]} 40. Rxh7 {[%clk 0:00:22]}  Kf5 {[%clk 0:00:01]} 41. Rf7# {[%clk 0:00:22]} 1-0


[Site "https://www.chess.com"]